Cogmind - Beta 10 @@@ ROGUE MODE // 2020.09.18 @ 22:16:33 Player: Palikka Result: Destroyed by S-43 Plague with Heavy Machine Gun Performance ------------- Evolutions (9) 4500 Regions Visited (12) 2400 Robots Destroyed (23) 115 Value Destroyed (450) 450 Prototype IDs (1) 20 Alien Tech Used (0) 0 Bonus (834) 834 TOTAL SCORE: 8319 Bonus ------- Pacifist 834 Cogmind --------- Core Integrity 0/1600 Matter 282/300 Energy 99/100 System Corruption 7% Temperature Cool (0) Movement Core (50) Location -1/Access Parts ------- > --- POWER (2) -------- (None) > --- PROPULSION (10) -- (None) > --- UTILITY (11) ----- Advanced Melee Analysis Suite > --- WEAPON (2) ------- (None) > --- INVENTORY (4) ---- Light Quantum Reactor Peak State ------------ > --- POWER ------------ Light Quantum Reactor > --- PROPULSION ------- Impulse Thruster Array Improved Q-thruster > --- UTILITY ---------- Advanced Melee Analysis Suite Advanced System Shield > --- WEAPON ----------- (None) > --- INVENTORY -------- (None) [Rating: 46] Favorites ----------- Power Light Ion Engine Engine Light Ion Engine Reactor Light Quantum Reactor Propulsion VTOL Module Flight Unit VTOL Module Utility Improved Signal Interpreter Device Advanced Sensor Array Processor Improved Signal Interpreter Hackware Advanced System Shield Protection Improved Propulsion Shielding Weapon Assault Rifle Ballistic Gun Assault Rifle Launcher Mini Grenade Launcher Slashing Weapon Power Sword Build | -11 -10 -9 -8 -7 -6 -5 -4 -4 -4 -3 -2 -1 ------- Run | Scr Mat Mat Mat Fac Fac Fac Fac Upp Upp Res Res Acc Slots Evolved 18 | . . 2 2 2 2 2 2 . . 2 2 2 Power 1 | . . . . . 1 . . . . . . . Propulsion 8 | . . 1 1 1 . 1 1 . . 1 1 1 Utility 9 | . . 1 1 1 1 1 1 . . 1 1 1 Weapon . | . . . . . . . . . . . . . Parts Attached 44 | 1 . . 1 13 8 7 4 . . 6 4 . Power 9 | . . . . 2 2 1 1 . . 2 1 . Engine 7 | . . . . 2 2 1 1 . . 1 . . Core . | . . . . . . . . . . . . . Reactor 2 | . . . . . . . . . . 1 1 . Propulsion 11 | . . . . 4 1 1 1 . . 3 1 . Treads . | . . . . . . . . . . . . . Leg . | . . . . . . . . . . . . . Wheel . | . . . . . . . . . . . . . Hover . | . . . . . . . . . . . . . Flight 11 | . . . . 4 1 1 1 . . 3 1 . Utility 12 | . . . 1 2 3 3 1 . . . 2 . Device 4 | . . . . . 2 2 . . . . . . Storage . | . . . . . . . . . . . . . Processor 4 | . . . 1 2 . . 1 . . . . . Hackware 2 | . . . . . . 1 . . . . 1 . Protection 2 | . . . . . 1 . . . . . 1 . Artifact . | . . . . . . . . . . . . . Weapon 12 | 1 . . . 5 2 2 1 . . 1 . . Energy Gun . | . . . . . . . . . . . . . Energy Cannon . | . . . . . . . . . . . . . Ballistic Gun 2 | 1 . . . 1 . . . . . . . . Ballistic Cannon . | . . . . . . . . . . . . . Launcher 6 | . . . . 3 1 2 . . . . . . Special Weapon . | . . . . . . . . . . . . . Impact Weapon . | . . . . . . . . . . . . . Slashing Weapon 4 | . . . . 1 1 . 1 . . 1 . . Piercing Weapon . | . . . . . . . . . . . . . Special Melee Weapon . | . . . . . . . . . . . . . Unidentified Prototypes 1 | . . . . . . . . . . . 1 . Parts Lost 28 | . . . 1 4 5 4 2 . . 8 1 3 Power 6 | . . . . 1 3 . . . . 2 . . Propulsion 11 | . . . . 2 1 2 1 . . 3 1 1 Utility 7 | . . . . . 1 1 1 . . 2 . 2 Weapon 4 | . . . 1 1 . 1 . . . 1 . . Highest Loss Streak 5 | . . . 1 3 2 2 2 . . 5 1 2 Average Slot Usage (%) 23 | . 14 11 12 30 50 25 28 21 21 14 16 10 Engine 2 | . . . . 5 9 . 1 . . . . . Flight 6 | . . . . 13 16 6 6 5 5 4 4 3 Device 1 | . . . . . 6 4 . . . . . . Processor 5 | . . . 5 6 7 5 8 10 10 6 4 4 Hackware 1 | . . . . . . 1 3 . . . 4 2 Protection 2 | . . . . . 4 5 5 5 5 . . . Ballistic Gun 1 | . 14 11 6 2 . . . . . . . . Naked Turns 17 | . . . 3 14 . . . . . . . . Heaviest Build 19 | 2 2 2 2 5 15 4 12 2 2 19 15 15 Greatest Support 43 | 3 3 3 3 15 15 5 14 9 9 32 43 16 Greatest Overweight (x) 1 | . . . . . . . 1 . . . . . Average Overweight (x) . | . . . . . . . . . . . . . Largest Inventory Capacity 4 | 4 4 4 4 4 4 4 4 4 4 4 4 4 Average Capacity 4 | 4 4 4 4 4 4 4 4 4 4 4 4 4 Most Carried 4 | 4 4 4 4 4 4 4 2 3 3 3 1 1 Average Carried 2 | 2 4 4 4 3 2 3 1 3 3 . . 1 Final Capacity 4 | 4 4 4 4 4 4 4 4 4 4 4 4 4 Final Carried 4 | 4 4 4 4 4 4 3 2 3 3 . 1 1 Class Distribution -------------------- 79% | Mutant 18% | Scavenger-Mutant Dominant Class ---------------- Mutant | -10/Materials Mutant | -9/Materials Mutant | -8/Materials Scavenger-Mutant | -7/Factory Scavenger-Mutant | -6/Factory Mutant | -5/Factory Mutant | -4/Factory Mutant | -4/Upper Caves Mutant | -4/Upper Caves Mutant | -3/Research Mutant | -2/Research Mutant | -1/Access Resources | -11 -10 -9 -8 -7 -6 -5 -4 -4 -4 -3 -2 -1 ----------- Run | Scr Mat Mat Mat Fac Fac Fac Fac Upp Upp Res Res Acc Matter Collected 588 | 192 . . 15 146 97 65 . 55 . . 18 . Remotely . | . . . . . . . . . . . . . Salvage Created 395 | . . . . 256 84 55 . . . . . . Parts 34 | . . . . 24 6 4 . . . . . . Haulers Intercepted . | . . . . . . . . . . . . . Recyclers Shooed 3 | . . . . 3 . . . . . . . . Parts Field Recycled . | . . . . . . . . . . . . . Retrieved Matter . | . . . . . . . . . . . . . Parts Self-Destructed . | . . . . . . . . . . . . . Prevented . | . . . . . . . . . . . . . Kills | -11 -10 -9 -8 -7 -6 -5 -4 -4 -4 -3 -2 -1 ------- Run | Scr Mat Mat Mat Fac Fac Fac Fac Upp Upp Res Res Acc Combat Hostiles Destroyed 15 | . . . . 7 3 5 . . . . . . Guns 1 | . . . . 1 . . . . . . . . AOE 14 | . . . . 6 3 5 . . . . . . Classes Destroyed 5 | . . . . 4 1 . . . . . . . Worker 4 | . . . . 4 . . . . . . . . Builder 2 | . . . . . 2 . . . . . . . Recycler 1 | . . . . 1 . . . . . . . . Watcher 1 | . . . . 1 . . . . . . . . Swarmer 15 | . . . . 7 3 5 . . . . . . Best Kill Streak 9 | . . . . 9 5 5 . . . . . . Combat Bots Only 5 | . . . . 4 3 5 . . . . . . Max Kills in Single Turn 5 | . . . . 5 5 3 . . . . . . Gunslinging . | . . . . . . . . . . . . . Exploded 3 | . . . . 2 3 3 . . . . . . Melee . | . . . . . . . . . . . . . Uniques/NPCs Destroyed . | . . . . . . . . . . . . . Combat | -11 -10 -9 -8 -7 -6 -5 -4 -4 -4 -3 -2 -1 -------- Run | Scr Mat Mat Mat Fac Fac Fac Fac Upp Upp Res Res Acc Damage Taken 6718 | . . 227 279 471 389 521 273 90 . 1680 1046 1742 Core 4511 | . . 146 242 193 135 419 140 90 . 1207 325 1614 Absorbed by Shields . | . . . . . . . . . . . . . Core Remaining (%) 69 | 100 100 63 56 72 84 58 . . 80 7 77 . Volleys Fired 18 | . . . . 13 2 3 . . . . . . Largest 2 | . . . . 2 1 1 . . . . . . Hottest 50 | . . . . 50 30 30 . . . . . . Shots Fired 19 | . . . . 14 2 3 . . . . . . Gun 11 | . . . . 11 . . . . . . . . Cannon . | . . . . . . . . . . . . . Launcher 8 | . . . . 3 2 3 . . . . . . Special . | . . . . . . . . . . . . . Kinetic 11 | . . . . 11 . . . . . . . . Thermal . | . . . . . . . . . . . . . Explosive 8 | . . . . 3 2 3 . . . . . . Electromagnetic . | . . . . . . . . . . . . . Robot Hit Streak 4 | . . . . 4 . 1 . . . . . . Robot Miss Streak 7 | . . . . 3 5 7 . . . . . . Penetration Max . | . . . . . . . . . . . . . Secondary Targets . | . . . . . . . . . . . . . Shots Hit Robots 8 | . . . . 7 . 1 . . . . . . Core Hits 38 | . . . 1 21 6 10 . . . . . . Critical Hits . | . . . . . . . . . . . . . Critical Kills . | . . . . . . . . . . . . . Critical Parts Destroyed . | . . . . . . . . . . . . . Melee Attacks 4 | . . . . . 1 . 1 . . 2 . . Impact . | . . . . . . . . . . . . . Slashing 4 | . . . . . 1 . 1 . . 2 . . Piercing . | . . . . . . . . . . . . . Sneak Attacks . | . . . . . . . . . . . . . Combat Hostiles . | . . . . . . . . . . . . . Follow-up Attacks . | . . . . . . . . . . . . . Damage Inflicted 1285 | . . 5 21 707 200 345 . . . . . 7 Guns 102 | . . . . 102 . . . . . . . . Cannons . | . . . . . . . . . . . . . Explosions 1150 | . . . . 605 200 345 . . . . . . Melee . | . . . . . . . . . . . . . Ramming 33 | . . 5 21 . . . . . . . . 7 Kinetic 102 | . . . . 102 . . . . . . . . Thermal . | . . . . . . . . . . . . . Explosive 1150 | . . . . 605 200 345 . . . . . . Electromagnetic . | . . . . . . . . . . . . . Impact . | . . . . . . . . . . . . . Slashing . | . . . . . . . . . . . . . Piercing . | . . . . . . . . . . . . . Highest Corruption 7 | . 2 . . . . . . . . 7 . 7 Average Corruption 3 | . 2 . . . . . . . . 3 . 3 Corruption Purged . | . . . . . . . . . . . . . Effects 2 | . . . . . . . . . . 1 . 1 Message Errors 1 | . . . . . . . . . . 1 . . Energy Discharges 1 | . . . . . . . . . . . . 1 Overload Shots . | . . . . . . . . . . . . . Overflow Damage . | . . . . . . . . . . . . . Projectiles . | . . . . . . . . . . . . . Explosions . | . . . . . . . . . . . . . Melee . | . . . . . . . . . . . . . Knockbacks 1 | . . 1 . . . . . . . . . . Impact 1 | . . 1 . . . . . . . . . . Kinetic . | . . . . . . . . . . . . . Secondary . | . . . . . . . . . . . . . Self-Inflicted Damage 72 | . . 2 10 . 49 8 . . . . . 3 Shots 2 | . . . . . 1 1 . . . . . . Rammed 9 | . . 1 5 . . . . . . . . 3 Targets Rammed 9 | . . 1 5 . . . . . . . . 3 Kicked . | . . . . . . . . . . . . . Crushed . | . . . . . . . . . . . . . Highest Temperature . | . . . . . . . . . . . . . Average Temperature . | . . . . . . . . . . . . . Received Heat Transfer 732 | . . 102 99 54 69 81 54 9 . 138 54 72 Siege Activations . | . . . . . . . . . . . . . Robots Corrupted . | . . . . . . . . . . . . . Combat Hostiles . | . . . . . . . . . . . . . Parts Fried . | . . . . . . . . . . . . . Impact Corruptions . | . . . . . . . . . . . . . Robots Melted . | . . . . . . . . . . . . . Combat Hostiles . | . . . . . . . . . . . . . Parts Melted . | . . . . . . . . . . . . . Heat Transferred . | . . . . . . . . . . . . . Parts Sabotaged . | . . . . . . . . . . . . . Parts Stolen . | . . . . . . . . . . . . . Parts Stripped . | . . . . . . . . . . . . . Power Chain Reactions . | . . . . . . . . . . . . . Missiles Intercepted . | . . . . . . . . . . . . . Alert | -11 -10 -9 -8 -7 -6 -5 -4 -4 -4 -3 -2 -1 ------- Run | Scr Mat Mat Mat Fac Fac Fac Fac Upp Upp Res Res Acc Peak Influence 317 | . 24 48 85 317 267 288 157 . . 134 125 124 Initial 149 | . . 9 20 38 149 125 140 . . 45 75 74 Average 134 | . 13 34 58 205 195 209 144 . . 70 106 99 Maximum Alert Level 1 | . . . . 1 1 1 . . . . . . Low Security (%) 79 | 100 100 100 100 46 73 43 100 . . 100 100 100 Level 1 20 | . . . . 53 26 56 . . . . . . Level 2 . | . . . . . . . . . . . . . Level 3 . | . . . . . . . . . . . . . Level 4 . | . . . . . . . . . . . . . Level 5 . | . . . . . . . . . . . . . High Security . | . . . . . . . . . . . . . Max Security . | . . . . . . . . . . . . . Squads Dispatched 17 | . . 3 2 2 2 2 . . . 3 1 2 Investigation 7 | . . 1 1 . 2 1 . . . . . 2 Extermination . | . . . . . . . . . . . . . Reinforcement 10 | . . 2 1 2 . 1 . . . 3 1 . Assault . | . . . . . . . . . . . . . Garrison . | . . . . . . . . . . . . . Intercept . | . . . . . . . . . . . . . Construction Impeded . | . . . . . . . . . . . . . Haulers Reinforced . | . . . . . . . . . . . . . Stealth | -11 -10 -9 -8 -7 -6 -5 -4 -4 -4 -3 -2 -1 --------- Run | Scr Mat Mat Mat Fac Fac Fac Fac Upp Upp Res Res Acc Distress Signals 6 | . . 1 . . 1 . . . . 2 . 2 Communications Jammed . | . . . . . . . . . . . . . Distress Signals . | . . . . . . . . . . . . . Times Spotted 230 | . 1 18 12 20 20 24 9 12 1 49 34 30 Peak Tracking Total 20 | . 1 16 10 7 11 9 9 9 1 19 20 17 Tactical Retreats 30 | . . . . 3 5 4 . 3 . 8 3 4 Traps | -11 -10 -9 -8 -7 -6 -5 -4 -4 -4 -3 -2 -1 ------- Run | Scr Mat Mat Mat Fac Fac Fac Fac Upp Upp Res Res Acc Traps Triggered 7 | . 1 1 2 . 2 1 . . . . . . Indirectly . | . . . . . . . . . . . . . Trap Hack Attempts . | . . . . . . . . . . . . . Triggered . | . . . . . . . . . . . . . Disarmed . | . . . . . . . . . . . . . Reprogrammed . | . . . . . . . . . . . . . Reused . | . . . . . . . . . . . . . Traps Extracted . | . . . . . . . . . . . . . Installed . | . . . . . . . . . . . . . Triggered . | . . . . . . . . . . . . . Machines | -11 -10 -9 -8 -7 -6 -5 -4 -4 -4 -3 -2 -1 ---------- Run | Scr Mat Mat Mat Fac Fac Fac Fac Upp Upp Res Res Acc Machines Disabled . | . . . . . . . . . . . . . Max in Single Turn . | . . . . . . . . . . . . . Machines Sabotaged . | . . . . . . . . . . . . . Garrisons Compromised . | . . . . . . . . . . . . . Overloaded Fab Kills . | . . . . . . . . . . . . . Fab Network Shutdowns . | . . . . . . . . . . . . . Hacking | -11 -10 -9 -8 -7 -6 -5 -4 -4 -4 -3 -2 -1 --------- Run | Scr Mat Mat Mat Fac Fac Fac Fac Upp Upp Res Res Acc Machines Accessed 14 | . 1 1 1 3 3 1 1 1 . . . 2 Terminals 11 | . 1 1 1 3 3 . 1 . . . . 1 Fabricators . | . . . . . . . . . . . . . Repair Stations . | . . . . . . . . . . . . . Recycling Units . | . . . . . . . . . . . . . Scanalyzers . | . . . . . . . . . . . . . Garrison Access 2 | . . . . . . 1 . . . . . 1 Total Hacks 23 | . 1 2 1 5 5 2 2 1 . . . 4 Successful 3 | . 1 1 . . . . . 1 . . . . Failed 20 | . . 1 1 5 5 2 2 . . . . 4 Catastrophic 12 | . . 1 1 2 2 . 2 . . . . 4 Database Lockouts . | . . . . . . . . . . . . . Manual 12 | . 1 2 1 1 5 . 2 . . . . . Terminals 18 | . 1 2 1 5 5 . 2 . . . . 2 Fabricators . | . . . . . . . . . . . . . Repair Stations . | . . . . . . . . . . . . . Recycling Units . | . . . . . . . . . . . . . Scanalyzers . | . . . . . . . . . . . . . Garrison Access 4 | . . . . . . 2 . . . . . 2 Terminal Hacks 3 | . 1 1 . . . . . 1 . . . . Open Door 1 | . . . . . . . . 1 . . . . Level Access Points 2 | . 1 1 . . . . . . . . . . Fabricator Hacks . | . . . . . . . . . . . . . Repair Station Hacks . | . . . . . . . . . . . . . Recycling Unit Hacks . | . . . . . . . . . . . . . Scanalyzer . | . . . . . . . . . . . . . Garrison Access Hacks . | . . . . . . . . . . . . . Unauthorized Hacks . | . . . . . . . . . . . . . Terminals . | . . . . . . . . . . . . . Fabricators . | . . . . . . . . . . . . . Repair Stations . | . . . . . . . . . . . . . Recycling Units . | . . . . . . . . . . . . . Scanalyzers . | . . . . . . . . . . . . . Garrison Access . | . . . . . . . . . . . . . Data Cores Recovered . | . . . . . . . . . . . . . Used . | . . . . . . . . . . . . . Hacking Detections 12 | . . 1 1 3 3 1 1 . . . . 2 Full Trace Events 3 | . . . . . 1 . . . . . . 2 Feedback Events . | . . . . . . . . . . . . . Feedback Blocked . | . . . . . . . . . . . . . Robot Schematics Acquired . | . . . . . . . . . . . . . Robots Built . | . . . . . . . . . . . . . Matter . | . . . . . . . . . . . . . Time . | . . . . . . . . . . . . . Total Robot Build Rating . | . . . . . . . . . . . . . Part Schematics Acquired . | . . . . . . . . . . . . . Parts Built . | . . . . . . . . . . . . . Matter . | . . . . . . . . . . . . . Time . | . . . . . . . . . . . . . Total Part Build Rating . | . . . . . . . . . . . . . Parts Repaired . | . . . . . . . . . . . . . Time . | . . . . . . . . . . . . . Parts Recycled . | . . . . . . . . . . . . . Recycled Matter . | . . . . . . . . . . . . . Retrieved Matter . | . . . . . . . . . . . . . Retrieved Components . | . . . . . . . . . . . . . Parts Scanalyzed . | . . . . . . . . . . . . . Part Schematics Acquired . | . . . . . . . . . . . . . Parts Damaged . | . . . . . . . . . . . . . Bothacking | -11 -10 -9 -8 -7 -6 -5 -4 -4 -4 -3 -2 -1 ------------ Run | Scr Mat Mat Mat Fac Fac Fac Fac Upp Upp Res Res Acc Used RIF Installer . | . . . . . . . . . . . . . Robots Hacked . | . . . . . . . . . . . . . Non-combat . | . . . . . . . . . . . . . Combat . | . . . . . . . . . . . . . Robot Hacks Applied . | . . . . . . . . . . . . . Relay Couplers Released . | . . . . . . . . . . . . . Robots Rewired . | . . . . . . . . . . . . . Allies Hacked . | . . . . . . . . . . . . . Hacks Repelled . | . . . . . . . . . . . . . Allies | -11 -10 -9 -8 -7 -6 -5 -4 -4 -4 -3 -2 -1 -------- Run | Scr Mat Mat Mat Fac Fac Fac Fac Upp Upp Res Res Acc Total Allies . | . . . . . . . . . . . . . Largest Group . | . . . . . . . . . . . . . Highest-Rated Group . | . . . . . . . . . . . . . Highest-Rated Ally . | . . . . . . . . . . . . . Total Orders . | . . . . . . . . . . . . . Ally Attacks . | . . . . . . . . . . . . . Total Damage . | . . . . . . . . . . . . . Kills . | . . . . . . . . . . . . . Allies Corrupted . | . . . . . . . . . . . . . Allies Melted . | . . . . . . . . . . . . . Intel | -11 -10 -9 -8 -7 -6 -5 -4 -4 -4 -3 -2 -1 ------- Run | Scr Mat Mat Mat Fac Fac Fac Fac Upp Upp Res Res Acc Robot Analysis Total . | . . . . . . . . . . . . . Derelict Logs Recovered 1 | . . . . . . . . 1 . . . . Drone Launches 4 | . . . . . 2 2 . . . . . . Drone Recoveries . | . . . . . . . . . . . . . Exploration | -11 -10 -9 -8 -7 -6 -5 -4 -4 -4 -3 -2 -1 ------------- Run | Scr Mat Mat Mat Fac Fac Fac Fac Upp Upp Res Res Acc Turns Passed 1479 | 19 44 63 78 188 194 218 79 129 9 219 105 134 Spaces Moved 3185 | 26 87 123 141 358 435 398 175 322 23 494 259 344 Core 622 | 26 87 123 141 34 . 46 . . . 96 . 69 Treads . | . . . . . . . . . . . . . Legs . | . . . . . . . . . . . . . Wheels . | . . . . . . . . . . . . . Hover . | . . . . . . . . . . . . . Flight 2563 | . . . . 324 435 352 175 322 23 398 259 275 Fastest Speed 34 | 50 50 50 50 34 34 40 37 40 40 37 34 35 Average Speed 40 | 50 50 50 50 37 35 41 39 40 40 41 37 38 Slowest Speed 120 | 50 50 50 50 50 40 50 120 40 40 50 40 50 Overloaded Moves . | . . . . . . . . . . . . . Propulsion Burnouts . | . . . . . . . . . . . . . Robots Hopped 55 | . . . . 5 8 7 3 1 . 15 10 6 Cave-ins Triggered . | . . . . . . . . . . . . . Exploration Rate (%) 20 | 3 21 27 26 17 19 19 5 59 4 32 18 11 Regions Visited 12 Branch Regions 2 Pre-discovered Areas . | . . . . . . . . . . . . . Known Exits Taken 8 | . 1 1 . 1 1 1 1 1 1 . . . Unknown Exits Taken 4 | 1 . . 1 . . . . . . 1 1 . Scrap Searched 2 | . . . . . . . . 2 . . . . Spaces Dug 4 | . . . . . 1 . 1 . . 2 . . Terrain Destroyed 59 | . . . . 28 19 9 1 . . 2 . . Melee 4 | . . . . . 1 . 1 . . 2 . . Projectile . | . . . . . . . . . . . . . AOE 55 | . . . . 28 18 9 . . . . . . Terrain Rammed . | . . . . . . . . . . . . . Walls Destroyed . | . . . . . . . . . . . . . Machines Disabled . | . . . . . . . . . . . . . Actions | -11 -10 -9 -8 -7 -6 -5 -4 -4 -4 -3 -2 -1 --------- Run | Scr Mat Mat Mat Fac Fac Fac Fac Upp Upp Res Res Acc Total 3286 | 30 86 123 148 390 462 442 179 321 22 488 254 341 Wait 61 | . . . . 3 20 36 . . . 2 . . Move 3070 | 25 86 122 141 349 419 383 168 319 22 466 238 332 Hop 49 | . . . . 3 7 7 3 1 . 12 10 6 Pick Up 15 | 4 . . 1 6 2 . 1 . . . 1 . Fast Attach 22 | 1 . . 1 5 3 4 2 . . 3 3 . Attach 21 | . . . . 7 5 3 2 . . 3 1 . Detach 11 | . . . . 2 3 3 1 1 . . 1 . Swap 1 | . . . . 1 . . . . . . . . Drop 6 | . . . 1 1 . 3 1 . . . . . Fire 18 | . . . . 13 2 3 . . . . . . Melee 4 | . . . . . 1 . 1 . . 2 . . Ram 8 | . . 1 4 . . . . . . . . 3 Kick . | . . . . . . . . . . . . . Crush . | . . . . . . . . . . . . . Escape Stasis . | . . . . . . . . . . . . . Rewire . | . . . . . . . . . . . . . Trap . | . . . . . . . . . . . . . Miscellaneous . | . . . . . . . . . . . . . Route ------- -11/Scrapyard -10/Materials (discovered 3 exits: *Mat x3) -9/Materials (discovered 3 exits: *Mat x3) -8/Materials -7/Factory -6/Factory (discovered 2 exits: *Fac / *Low) -5/Factory (discovered 2 exits: *Fac / *Upp) -4/Factory -4/Upper Caves -4/Upper Caves -3/Research (discovered 2 exits: [*Res] / *Qua) -2/Research -1/Access History --------- Turn | Location | Event 6 | -11/Scrapyard | Discovered new exit (range 15) 20 | -11/Scrapyard | Entered Materials 50 | -10/Materials | Identified exit to Materials 64 | -10/Materials | Entered another Materials area 64 | -9/Materials | Evolved 2 slots: Propulsion x1, Utility x1 108 | -9/Materials | Identified exit to Materials 127 | -9/Materials | Entered another Materials area 127 | -8/Materials | Evolved 2 slots: Propulsion x1, Utility x1 200 | -8/Materials | Discovered new exit (range 10) 205 | -8/Materials | Entered Factory 205 | -7/Factory | Evolved 2 slots: Propulsion x1, Utility x1 329 | -7/Factory | Lost 3 parts (1p1n1w) 387 | -7/Factory | Discovered new exit (range 6) 392 | -7/Factory | Identified exit to Factory 393 | -7/Factory | Entered another Factory area 393 | -6/Factory | Evolved 2 slots: Power x1, Utility x1 411 | -6/Factory | Discovered new exit (range 8) 423 | -6/Factory | Identified exit to Lower Caves 582 | -6/Factory | Discovered new exit (range 16) 586 | -6/Factory | Identified exit to Factory 587 | -6/Factory | Entered another Factory area 587 | -5/Factory | Evolved 2 slots: Propulsion x1, Utility x1 639 | -5/Factory | Discovered new exit (range 12) 657 | -5/Factory | Identified exit to Upper Caves 751 | -5/Factory | Spotted B-75 Beast 803 | -5/Factory | Discovered new exit (range 8) 805 | -5/Factory | Identified exit to Factory 805 | -5/Factory | Entered another Factory area 805 | -4/Factory | Evolved 2 slots: Propulsion x1, Utility x1 874 | -4/Factory | Discovered new exit (range 16) 879 | -4/Factory | Identified exit to Upper Caves 883 | -4/Factory | Build established: Mutant 884 | -4/Factory | Entered Upper Caves 898 | -4/Upper Caves | Attracted the attention of an 0b10 checkpoint 964 | -4/Upper Caves | Learned Research stockpile data 1007 | -4/Upper Caves | Discovered new exit (range 15) 1013 | -4/Upper Caves | Identified exit to Upper Caves 1013 | -4/Upper Caves | Entered another Upper Caves area 1018 | -4/Upper Caves | Discovered new exit (range 13) 1022 | -4/Upper Caves | Identified exit to Research 1022 | -4/Upper Caves | Entered Research 1022 | -3/Research | Evolved 2 slots: Propulsion x1, Utility x1 1105 | -3/Research | Discovered new exit (range 10) 1112 | -3/Research | Identified exit to Quarantine 1139 | -3/Research | Spotted B-86 Titan 1183 | -3/Research | Lost 5 parts (1p2n1u1w) 1200 | -3/Research | Core integrity fell below 50% 1218 | -3/Research | Spotted B-86 Titan 1224 | -3/Research | Core integrity fell below 20% 1235 | -3/Research | Discovered new exit (range 15) 1241 | -3/Research | Entered another Research area 1241 | -2/Research | Evolved 2 slots: Propulsion x1, Utility x1 1317 | -2/Research | Spotted B-90 Cyclops 1340 | -2/Research | Discovered new exit (range 16) 1346 | -2/Research | Entered Access 1346 | -1/Access | Evolved 2 slots: Propulsion x1, Utility x1 1455 | -1/Access | Core integrity fell below 50% 1472 | -1/Access | Core integrity fell below 20% 1480 | -1/Access | Destroyed by S-43 Plague with Heavy Machine Gun Last Messages --------------- 01416_ Current location identified: Access 01416_ ALERT: Suspicious activity at Terminal A001. Dispatching Investigation squad. 01429_ K-01 Serf destroyed. 01433_ P-80 Master suffers critical hit. 01433_ Chain reaction triggered in Lgt. Particle Reactor. 01433_ P-80 Master destroyed. 01441_ System corrupted: Energy discharge (-5). 01445_ R-10 Processor collects Mic. Fission Core. 01447_ Adv. System Shield destroyed. 01449_ Slug penetrates G-73 Enforcer. 01450_ Imp. Q-thruster destroyed. 01451_ Slammed into G-73 Enforcer. 01454_ P-80 Master resets G-73 Enforcer, system corruption cleaned. 01468_ Connecting with Garrison Access... 01468_ ALERT: Suspicious activity at Garrison Access A004. Dispatching Investigation squad. 01471_ Slammed into P-80 Master. 01474_ P-80 Master resets S-43 Plague, system corruption cleaned. 01476_ Terminal disabled. Map ----- +----------------------------------------------------+ | ????????????????# #??? ????# # | | ????????????????# #???? ????# # | | ????????????????# " #???? ""??# # | | ????????????????# """ #???? ""#?# # | | ????????????????# G #?????"" T#?# # | | ????????????????# """ #?????"" ""#?# # | | ????????????????# " #???"""""" ""#?# ## | | ????????????????# #? """""" ""#?# #? | | ????????????????# ## "" #?# #? | | ????????????????#########+##### ] "" #?# #? | | ??????????????????????# ###############+### ## | | ??????????????????????# "" | | ??????????????????????# T | | ??????????????????????#p ############ #+ | | ??????????????????????##s ##??????????# #? | | ???????????????????????# #???????????# #? | | ???????????????????????#p #???????????# #? | | ???????????????????????# p#???????????# #? | | ???????????????????????#s #???????????# +? | | ???????????????????????#ss#???????????# #? | | ???????????????????????# #???????????# ##### ##? | | ???????????????????????#ps#???????????# #???# #?? | | ???????????????????????# #???????????# #???#+#?? | | ???????????????????????# #???????????+ #???? ??? | | ???????????????????????# #???????????# ????? ??? | | ???????????????????????# @#???????????# ????????? | | ???????????????????????# #???????????? ????????? | | ???????????????????????# #??????????????????????? | | ??????????????????????? ??????????????????????? | | ?????????????????????? k ??????????????????????? | | ?????????????????????######??????????????????????? | | ?????????????????????????????????????????????????? | | ?????????????????????????????????????????????????? | | ?????????????????????????????????????????????????? | | ?????????????????????????????????????????????????? | | ?????????????????????????????????????????######### | | ?????????????????????????????????????????# | | ?????????????????????????????????????????# | | ?????????????????????????????????????????# ! | | ?????????????????????????????????????????? | | ???????????????????????????????????????????? ]]] | | ???????????????????????????????????????# ?????]] | | ???????????????????????????????????????# ??????? | | ???????????????????????????????????????# ######### | | ???????????????????????????????????????# | | ???????????????????????????????????????# | | ???????????????????????????????????????# | | ???????????????????????????????????????# | | ???????????????????????????????????????# | | ???????????????????????????????????????# | +----------------------------------------------------+ Best States ------------- Heat Dissipation 52 Energy Generation 25 Energy Capacity 325 Matter Stores 300 Matter Capacity 300 Sight Range 18 Robot Scan Range 16 Terrain Scan Density 10 Armor Coverage 600 Propulsion Shielding 66 Evasion (%) 63 Melee Accuracy 8 Defensive Hacking 14 Item Schematics ----------------- None Robot Schematics ------------------ None Fabricated ------------ Nothing Alien Tech Used ----------------- None Achievements -------------- None Challenges ------------ None Game ------ Seed ShockAssemblySystem Manual? 0 Play Time 00:30:49 Cumulative 267.5 hours Start 2020.09.18 @ 21:48:16 End 2020.09.18 @ 22:16:33 Sessions 1 Manual Loads 0 Difficulty Rogue Special Mode None Game No. 375 Rogue 375 Adventurer 0 Explorer 0 Win Type - Total 28 Types 19/0/6/3/0/0/0/0/0 Lore% 84 Gallery% 80 Achievement% 48 Wizard Run 0 Options --------- ASCII 0 Keyboard 1 Movement Numpad Keybinds 0 Fullscreen 1 Font 24/Smallcaps Map View 76x50 Tactical HUD 1 Map Filters NONE Filters NONE Steam 1 RUN: e96b9eb8-bd7c-47cf-a6fa-4a053652f43b